Cogmind - Beta 12 @@@ ROGUE MODE // 2023.08.26 @ 00:00:37 Player: Xplodonator Result: Self-destructed Performance ------------- Evolutions (2) 1000 Regions Visited (4) 800 Robots Destroyed (56) 280 Value Destroyed (1378) 1378 Prototype IDs (3) 60 Alien Tech Used (0) 0 Bonus (11) 11 TOTAL SCORE: 3529 Bonus ------- High Alert Combat Kills 11 Cogmind --------- Core Integrity 394/550 Matter 128/300 Energy 240/240 System Corruption 0% Temperature Cool (0) Movement Rolling (95) Ox1 Location -8/Materials Parts ------- > --- POWER (1) -------- Nuclear Core > --- PROPULSION (3) --- Wheel Wheel > --- UTILITY (5) ------ Medium Storage Unit Sensor Array Signal Interpreter ECM Suite > --- WEAPON (2) ------- Gauss Cannon Gauss Cannon > --- INVENTORY (10) --- Ion Engine Aluminum Leg Aluminum Leg Wheel Advanced Visual Processing Unit Advanced Visual Processing Unit Sensor Array Hacking Suite Mini Grenade Launcher Peak State ------------ > --- POWER ------------ Light Nuclear Core > --- PROPULSION ------- Wheel Wheel Wheel > --- UTILITY ---------- Medium Storage Unit Sensor Array Signal Interpreter ECM Suite Hacking Suite > --- WEAPON ----------- Gauss Cannon Gauss Cannon > --- INVENTORY -------- Ion Engine Nuclear Core Aluminum Leg Aluminum Leg Wheel Advanced Visual Processing Unit Sensor Array Hacking Suite Mini Grenade Launcher [Rating: 22] Favorites ----------- Power Ion Engine Engine Ion Engine Power Core Nuclear Core Propulsion Compact Wheel Leg Aluminum Leg Wheel Compact Wheel Utility Medium Storage Unit Device Sensor Array Storage Medium Storage Unit Processor Signal Interpreter Hackware Hacking Suite Weapon Gauss Cannon Energy Gun Small Laser Energy Cannon Light EM Pulse Cannon Ballistic Gun Minigun Ballistic Cannon Gauss Cannon Build | -11 -10 -10 -9 -8 ------- Run | Jun Mat Min Mat Mat Slots Evolved 4 | . . . 2 2 Power . | . . . . . Propulsion 1 | . . . . 1 Utility 3 | . . . 2 1 Weapon . | . . . . . Parts Attached 36 | 6 1 . 13 16 Power 6 | 1 . . 2 3 Engine 4 | 1 . . 2 1 Core 2 | . . . . 2 Reactor . | . . . . . Propulsion 10 | 2 . . 1 7 Treads . | . . . . . Leg 1 | . . . . 1 Wheel 9 | 2 . . 1 6 Hover . | . . . . . Flight . | . . . . . Utility 8 | 1 1 . 4 2 Device 4 | . . . 2 2 Storage 2 | 1 1 . . . Processor 1 | . . . 1 . Hackware 1 | . . . 1 . Protection . | . . . . . Artifact . | . . . . . Weapon 12 | 2 . . 6 4 Energy Gun 4 | 2 . . 2 . Energy Cannon 2 | . . . 2 . Ballistic Gun 2 | . . . . 2 Ballistic Cannon 4 | . . . 2 2 Launcher . | . . . . . Special Weapon . | . . . . . Impact Weapon . | . . . . . Slashing Weapon . | . . . . . Piercing Weapon . | . . . . . Special Melee Weapon . | . . . . . Unidentified Prototypes 1 | . . . . 1 Parts Lost 14 | . . . 3 11 Power 4 | . . . 1 3 Propulsion 7 | . . . 1 6 Utility 3 | . . . 1 2 Weapon . | . . . . . Highest Loss Streak 4 | . . . 1 4 To Critical Strikes . | . . . . . Average Slot Usage (%) 91 | . 85 85 84 96 Engine 8 | . 14 14 11 6 Wheel 23 | . 28 28 19 24 Device 11 | . . . 5 17 Storage 10 | . 14 14 11 9 Processor 8 | . . . 11 9 Hackware 7 | . . . 7 8 Energy Gun 3 | . 28 28 1 . Energy Cannon 1 | . . . 3 . Ballistic Gun 3 | . . . . 6 Ballistic Cannon 11 | . . . 14 11 Naked Turns . | . . . . . Heaviest Build 34 | 13 18 18 26 34 Greatest Support 42 | 26 26 26 26 42 Greatest Overweight (x) 8 | . . . 2 8 Average Overweight (x) . | . . . . . Largest Inventory Capacity 10 | 8 10 10 10 10 Average Capacity 9 | 7 8 10 10 10 Most Carried 10 | 6 8 8 10 9 Average Carried 8 | 2 7 8 8 8 Final Capacity 10 | 8 10 10 10 10 Final Carried 10 | 6 8 8 10 9 Class Distribution -------------------- 56% | Mutant 43% | Scavenger-Mutant Dominant Class ---------------- Mutant | -10/Materials Mutant | -10/Mines Mutant | -9/Materials Scavenger-Mutant | -8/Materials Resources | -11 -10 -10 -9 -8 ----------- Run | Jun Mat Min Mat Mat Matter Collected 1340 | 236 24 10 445 625 Remotely . | . . . . . Salvage Created 1661 | . 139 177 785 560 Parts 116 | . 14 9 59 34 Haulers Intercepted 5 | . 1 . 3 1 Recyclers Shooed 1 | . 1 . . . Parts Field Recycled . | . . . . . Retrieved Matter . | . . . . . Parts Self-Destructed . | . . . . . Prevented . | . . . . . Kills | -11 -10 -10 -9 -8 ------- Run | Jun Mat Min Mat Mat Combat Hostiles Destroyed 32 | . 1 2 16 13 Melee 1 | . . . . 1 Guns 6 | . 1 2 1 2 Cannons 24 | . . . 14 10 Classes Destroyed 11 | . 4 2 4 1 Worker 8 | . 1 . 2 5 Builder 1 | . . . 1 . Tunneler 1 | . . 1 . . Hauler 5 | . 1 . 3 1 Recycler 3 | . . 1 2 . Operator 2 | . . . 1 1 Watcher 4 | . 3 . 1 . Swarmer 7 | . . . 7 . Grunt 13 | . 1 2 4 6 Duelist 1 | . . . . 1 Sentry 11 | . . . 5 6 Best Kill Streak 5 | . 4 3 5 4 Combat Bots Only 4 | . 1 1 4 3 Max Kills in Single Turn 2 | . 1 2 2 1 Gunslinging . | . . . . . Exploded . | . . . . . Melee 1 | . . . . 1 Uniques/NPCs Destroyed . | . . . . . Combat | -11 -10 -10 -9 -8 -------- Run | Jun Mat Min Mat Mat Damage Taken 1736 | . 22 164 527 1023 Core 293 | . 12 44 81 156 Absorbed by Shields . | . . . . . Core Remaining (%) 85 | 100 . 77 79 . Volleys Fired 149 | . 19 14 55 61 Largest 2 | . 2 2 2 2 Hottest 112 | . 80 80 112 96 Shots Fired 296 | . 36 28 110 122 Gun 98 | . 36 28 10 24 Cannon 198 | . . . 100 98 Launcher . | . . . . . Special . | . . . . . Kinetic 202 | . . . 80 122 Thermal 34 | . 17 14 3 . Explosive . | . . . . . Electromagnetic 60 | . 19 14 27 . Robot Hit Streak 9 | . 8 5 9 7 Robot Miss Streak 6 | . 3 3 6 5 Penetration Max 1 | . . . . 1 Secondary Targets . | . . . . . Shots Hit Robots 160 | . 16 14 59 71 Core Hits 72 | . 8 6 30 28 Critical Kills . | . . . . . Critical Parts Destroyed . | . . . . . Critical Strikes 8 | . . . 1 7 Blast 8 | . . . 1 7 Melee Attacks . | . . . . . Impact . | . . . . . Slashing . | . . . . . Piercing . | . . . . . Sneak Attacks . | . . . . . Combat Hostiles . | . . . . . Follow-up Attacks . | . . . . . Damage Inflicted 3760 | . 281 292 1249 1938 Guns 788 | . 252 167 96 273 Cannons 2805 | . . . 1153 1652 Explosions 154 | . 29 125 . . Melee . | . . . . . Ramming 13 | . . . . 13 Kinetic 2753 | . . . 828 1925 Thermal 296 | . 83 203 10 . Explosive . | . . . . . Electromagnetic 698 | . 198 89 411 . Impact . | . . . . . Slashing . | . . . . . Piercing . | . . . . . Highest Corruption . | . . . . . Average Corruption . | . . . . . Corruption Purged . | . . . . . Corruption Blocked . | . . . . . Overload Shots . | . . . . . Overflow Damage 31 | . . . 16 15 Projectiles 31 | . . . 16 15 Explosions . | . . . . . Melee . | . . . . . Knockbacks 21 | . . . 7 14 Impact . | . . . . . Kinetic 21 | . . . 7 14 Secondary . | . . . . . Self-Inflicted Damage 6 | . . . . 6 Shots . | . . . . . Rammed 3 | . . . . 3 Targets Rammed 3 | . . . . 3 Kicked . | . . . . . Crushed . | . . . . . Highest Temperature 322 | . 86 322 211 236 Average Temperature 75 | . 29 172 39 98 Received Heat Transfer 657 | . 12 90 114 441 Siege Activations . | . . . . . Robots Corrupted 1 | . . . 1 . Combat Hostiles 1 | . . . 1 . Parts Fried 5 | . 3 . 2 . Impact Corruptions . | . . . . . Robots Melted . | . . . . . Combat Hostiles . | . . . . . Parts Melted 1 | . . 1 . . Heat Transferred 575 | . 175 375 25 . Parts Sabotaged . | . . . . . Parts Stolen . | . . . . . Parts Stripped . | . . . . . Power Chain Reactions 2 | . 1 1 . . Missiles Intercepted . | . . . . . Alert | -11 -10 -10 -9 -8 ------- Run | Jun Mat Min Mat Mat Peak Influence 436 | . 122 111 436 226 Initial 137 | . . 47 42 137 Average 129 | . 71 86 225 91 Maximum Alert Level 2 | . . . 2 1 Low Security (%) 82 | 100 100 100 45 99 Level 1 15 | . . . 48 . Level 2 1 | . . . 5 . Level 3 . | . . . . . Level 4 . | . . . . . Level 5 . | . . . . . High Security . | . . . . . Max Security . | . . . . . Squads Dispatched 2 | . . . . 2 Investigation 2 | . . . . 2 Extermination . | . . . . . Reinforcement . | . . . . . Assault . | . . . . . Garrison . | . . . . . Intercept . | . . . . . Searches Triggered . | . . . . . Construction Impeded . | . . . . . Haulers Reinforced . | . . . . . Active Scanning Responses . | . . . . . Cargo Convoy Interrupts . | . . . . . Stealth | -11 -10 -10 -9 -8 --------- Run | Jun Mat Min Mat Mat Distress Signals 2 | . 1 . 1 . Communications Jammed . | . . . . . Distress Signals . | . . . . . Times Spotted 50 | . 5 2 22 21 Peak Tracking Total 5 | . 3 2 5 5 Tactical Retreats 3 | . . . 2 1 Traps | -11 -10 -10 -9 -8 ------- Run | Jun Mat Min Mat Mat Traps Triggered 2 | . . . . 2 Indirectly . | . . . . . Trap Hack Attempts . | . . . . . Triggered . | . . . . . Disarmed . | . . . . . Reprogrammed . | . . . . . Reused . | . . . . . Traps Extracted . | . . . . . Installed . | . . . . . Triggered . | . . . . . Machines | -11 -10 -10 -9 -8 ---------- Run | Jun Mat Min Mat Mat Machines Disabled 6 | . 2 . 2 2 Max in Single Turn 1 | . 1 . 1 1 Machines Repaired . | . . . . . Machines Sabotaged . | . . . . . Overloaded Fab Kills . | . . . . . Hacking | -11 -10 -10 -9 -8 --------- Run | Jun Mat Min Mat Mat Machines Accessed 6 | . 2 . 1 3 Terminals 6 | . 2 . 1 3 Fabricators . | . . . . . Repair Stations . | . . . . . Recycling Units . | . . . . . Scanalyzers . | . . . . . Garrison Access . | . . . . . Total Hacks 16 | . 5 . 3 8 Successful 6 | . 1 . 1 4 Failed 9 | . 4 . 2 3 Catastrophic 2 | . 1 . . 1 Database Lockouts 1 | . . . . 1 Manual 17 | . 2 . 3 12 Terminals 16 | . 5 . 3 8 Fabricators . | . . . . . Repair Stations . | . . . . . Recycling Units . | . . . . . Scanalyzers . | . . . . . Garrison Access . | . . . . . Terminal Hacks 6 | . 1 . 1 4 Part Schematic 1 | . . . . 1 Prototype ID Bank 1 | . 1 . . . Branch Access Points 2 | . . . 1 1 Terminal Index 1 | . . . . 1 Alert Level 1 | . . . . 1 Fabricator Hacks . | . . . . . Repair Station Hacks . | . . . . . Recycling Unit Hacks . | . . . . . Scanalyzer . | . . . . . Garrison Access Hacks . | . . . . . Unauthorized Hacks . | . . . . . Terminals . | . . . . . Fabricators . | . . . . . Repair Stations . | . . . . . Recycling Units . | . . . . . Scanalyzers . | . . . . . Garrison Access . | . . . . . Data Cores Recovered 1 | . . . 1 . Used . | . . . . . Hacking Detections 7 | . 2 . 1 4 Full Trace Events . | . . . . . Feedback Events . | . . . . . Feedback Blocked . | . . . . . Robot Schematics Acquired . | . . . . . Robots Built . | . . . . . Authchips . | . . . . . Time . | . . . . . Total Robot Build Rating . | . . . . . Part Schematics Acquired 1 | . . . . 1 Parts Built . | . . . . . Authchips . | . . . . . Time . | . . . . . Total Part Build Rating . | . . . . . Parts Repaired . | . . . . . Time . | . . . . . Parts Recycled . | . . . . . Recycled Matter . | . . . . . Retrieved Matter . | . . . . . Retrieved Components . | . . . . . Parts Scanalyzed . | . . . . . Part Schematics Acquired . | . . . . . Parts Damaged . | . . . . . Bothacking | -11 -10 -10 -9 -8 ------------ Run | Jun Mat Min Mat Mat Used RIF Installer . | . . . . . Robots Hacked . | . . . . . Non-combat . | . . . . . Combat . | . . . . . Robot Hacks Applied . | . . . . . Relay Couplers Released . | . . . . . Fabnet Peak Effective % . | . . . . . Robots Rewired . | . . . . . Allies Hacked . | . . . . . Hacks Repelled . | . . . . . Allies | -11 -10 -10 -9 -8 -------- Run | Jun Mat Min Mat Mat Total Allies . | . . . . . Largest Group . | . . . . . Highest-Rated Group . | . . . . . Highest-Rated Ally . | . . . . . Total Orders . | . . . . . Ally Attacks . | . . . . . Total Damage . | . . . . . Kills . | . . . . . Allies Corrupted . | . . . . . Allies Melted . | . . . . . Intel | -11 -10 -10 -9 -8 ------- Run | Jun Mat Min Mat Mat Robot Analysis Total . | . . . . . Derelict Logs Recovered . | . . . . . Drone Launches . | . . . . . Drone Recoveries . | . . . . . Exploration | -11 -10 -10 -9 -8 ------------- Run | Jun Mat Min Mat Mat Turns Passed 2859 | 53 220 62 894 1630 Spaces Moved 1470 | 46 178 23 712 511 Core 10 | 7 . . . 3 Treads . | . . . . . Legs 18 | . . . . 18 Wheels 1442 | 39 178 23 712 490 Hover . | . . . . . Flight . | . . . . . Fastest Speed 50 | 50 90 90 90 80 Average Speed 96 | 84 90 90 94 103 Slowest Speed 450 | 100 90 90 110 450 Overloaded Moves . | . . . . . Propulsion Burnouts . | . . . . . Robots Hopped . | . . . . . Cave-ins Triggered . | . . . . . Exploration Rate (%) 27 | 3 34 9 50 42 Regions Visited 4 Branch Regions 1 Pre-discovered Areas . | . . . . . Known Exits Taken 1 | . . . 1 . Unknown Exits Taken 3 | 1 1 1 . . Scrap Searched . | . . . . . Spaces Dug . | . . . . . Terrain Destroyed 53 | . 4 4 6 39 Melee . | . . . . . Projectile 45 | . . . 6 39 AOE 8 | . 4 4 . . Terrain Rammed . | . . . . . Walls Destroyed . | . . . . . Machines Disabled . | . . . . . Actions | -11 -10 -10 -9 -8 --------- Run | Jun Mat Min Mat Mat Total 2611 | 57 202 36 824 1492 Wait 916 | . . . 29 887 Move 1466 | 45 177 22 711 511 Hop . | . . . . . Pick Up 24 | 6 3 . 10 5 Fast Attach 23 | 6 1 . 3 13 Attach 13 | . . . 9 4 Detach . | . . . . . Swap 1 | . . . 1 . Drop 16 | . 2 . 6 8 Fire 149 | . 19 14 55 61 Melee . | . . . . . Ram 3 | . . . . 3 Kick . | . . . . . Crush . | . . . . . Escape Stasis . | . . . . . Rewire . | . . . . . Trap . | . . . . . Miscellaneous . | . . . . . Route ------- -11/Junkyard -10/Materials -10/Mines -9/Materials (discovered 3 exits: *Mat x2 / *Min) -8/Materials (discovered 2 exits: *Fac / Sto) History --------- Turn | Location | Event 5 | -11/Junkyard | Discovered new exit (range 15) 54 | -11/Junkyard | Entered Materials 268 | -10/Materials | Discovered new exit (range 8) 274 | -10/Materials | Entered Mines 311 | -10/Mines | Build established: Mutant 335 | -10/Mines | Discovered new exit (range 3) 336 | -10/Mines | Entered Materials 336 | -9/Materials | Evolved 2 slots: Utility x2 644 | -9/Materials | Identified exit to Mines 916 | -9/Materials | Discovered new exit (range 10) 943 | -9/Materials | Identified exit to Materials 1193 | -9/Materials | Discovered exit to Materials (range 15) 1230 | -9/Materials | Entered another Materials area 1230 | -8/Materials | Evolved 2 slots: Propulsion x1, Utility x1 1266 | -8/Materials | Identified exit to Storage 1914 | -8/Materials | Central database locked down 2176 | -8/Materials | Build established: Scavenger-Mutant 2539 | -8/Materials | Lost 4 parts (1p3n) 2674 | -8/Materials | Lost 3 parts (1p1n1u) 2754 | -8/Materials | Discovered new exit (range 3) 2758 | -8/Materials | Identified exit to Factory 2860 | -8/Materials | Self-destructed Last Messages --------------- 02841_ K-01 Serf collects debris. 02845_ Slug penetrates L-31 Rogue. 02845_ L-31 Rogue knocked back. 02848_ K-01 Serf collects debris. 02848_ Slug penetrates L-31 Rogue. 02848_ L-31 Rogue knocked back. 02848_ Slug penetrates Wall. 02851_ Slammed into L-31 Rogue. 02851_ L-31 Rogue destroyed. 02852_ Acquired 32 matter. 02852_ K-01 Serf collects debris. 02852_ Acquired 35 matter. 02853_ Acquired 6 matter. 02854_ Acquired 15 matter. 02855_ K-01 Serf collects debris. 02855_ Acquired 6 matter. 02858_ K-01 Serf collects debris. 02859_ Acquired 20 matter. 02859_ Penetrated by Slug. 02859_ Hacking Suite destroyed. Map ----- +----------------------------------------------------+ | ??????????????????????????????????????????? | | ??????????????????????????????????????????? | | ??????????????????????????????????????????? | | ??????????????????????????????????????????? | | ??????????????????????????????????????????? | | ??????????????????????????????????????????? | | ??????????????????????????????????????????? | | ????????????????????????###+??????????????? | | ????????????????????????% ! ??????????????? | | ???????????????????????? *$%??????????????? | | ????????????????????????# %#??????????????? | | ????????????????????????# #??????????????? | | ????????????????????????+ +??????????????? | | ????????????????????????# #??????????????? | | ????????????????????????# #??????????????? | | ????????????????????????# #??????????????? | | ????????????????????????# #???????#??????? | | ???>????????????????????# #?#####;##?????? | | ????????????????????????# #? #?????? | | ???????????????????###??# # "" #?????? | | ???????????????##### ;###u # Y" #?????? | | ???????????????# ! % # ; "" #?????? | | ???????????????# """ *;k + #?????? | | ???????????????# "" /;! ; " #?????? | | ???????????????#"" """"*[= # """ #?????? | | ???????????????#"" #@;# """ ??????? | | ???????????????#"T #%##? #?????? | | ???????????????#"" [== # #???#######?????? | | ???????????????#"" [= # #???????????????? | | ???????????????# == # #???????????????? | | ???????????????########"# #???????????????? | | ????????????????# #???### #???????????????? | | ????????????????##??????#/########????????? | | ????????????????????????#h #????????? | | ????????????????????????# "" #????????? | | ????????????????????????# """#????????? | | ????????????????????????# ! S"#????????? | | ????????????????????????# #????????? | | ????????????????????????# """ #????????? | | ????????????????????????# """ #????????? | | ????????????????????????#] """ [ #????????? | | ????????????????????????# #????????? | | ?????????????#######+######+######????????? | | ???????????? #??????????? | | ???????????? < #??????????? | | ???????????? #??????????? | | ???????########### ######+#########?????? | | ??????? ! #?# ## #?????? | | ????#? #?# ## " """"" #?????? | | ????# """ """ #?# ## """"""""" #?????? | +----------------------------------------------------+ Best States ------------- Heat Dissipation 31 Energy Generation 14 Energy Capacity 265 Matter Stores 300 Matter Capacity 300 Sight Range 16 Robot Scan Range 14 Terrain Scan Density 10 ECM Strength 1 Evasion (%) 44 Offensive Hacking 10 Item Schematics ----------------- ECM Suite | -8/Materials | Hacked Robot Schematics ------------------ None Fabricated ------------ Nothing Alien Tech Used ----------------- None Achievements -------------- None Challenges ------------ None Game ------ Seed FlyingGyrokineticFlail Manual? 0 Play Time 00:31:27 Cumulative 16.5 hours Start 2023.03.03 @ 20:44:49 End 2023.08.26 @ 00:00:37 Sessions 3 Manual Loads 0 Difficulty Rogue Special Mode None Game No. 18 Rogue 18 Adventurer 0 Explorer 0 Win Type - Total 0 Types 0/0/0/0/0/0/0/0/0 Lore% 17 Gallery% 17 Achievement% 15 Wizard Run 0 Options --------- ASCII 0 Keyboard 0 Movement Mouse Keybinds 0 Fullscreen 2 Font 18/Smallcaps Map View 76x50 Tactical HUD 1 Map Filters NONE Filters NONE Steam 1 RUN: 7dd059c0-ecc2-4d3c-ae0e-77d517b1aac0